[Event "Titled Tuesday Blitz March 08 Early 2022"]
[White "Mikhnenko, Alexander"]
[Black "Goltseva, Ekaterina"]
[WhiteFideId "34143014"]
[BlackFideId "24173770"]
[WhiteElo "2184"]
[BlackElo "2140"]
[Result "0-1"]
[Round "11"]
[TimeControl "180+1"]
[Date "2022.03.09"]
[WhiteClock "0:00:03"]
[BlackClock "0:00:07"]

1. e4 {[%clk 0:03:00]}  e5 {[%clk 0:02:59]} 2. Nf3 {[%clk 0:03:00]}  Nc6 {[%clk 0:02:59]} 3. Bb5 {[%clk 0:03:00]}  a6 {[%clk 0:02:59]} 4. Ba4 {[%clk 0:03:00]}  Nf6 {[%clk 0:03:00]} 5. O-O {[%clk 0:03:00]}  Be7 {[%clk 0:03:00]} 6. d3 {[%clk 0:03:00]}  b5 {[%clk 0:02:59]} 7. Bb3 {[%clk 0:03:00]}  d6 {[%clk 0:03:00]} 8. a4 {[%clk 0:03:01]}  b4 {[%clk 0:02:59]} 9. Nbd2 {[%clk 0:03:01]}  O-O {[%clk 0:02:58]} 10. Re1 {[%clk 0:03:01]}  Be6 {[%clk 0:02:54]} 11. Bc4 {[%clk 0:02:57]}  Na5 {[%clk 0:02:49]} 12. b3 {[%clk 0:02:55]}  c6 {[%clk 0:02:45]} 13. Bxe6 {[%clk 0:02:48]}  fxe6 {[%clk 0:02:44]} 14. Nc4 {[%clk 0:02:48]}  Nb7 {[%clk 0:02:32]} 15. Be3 {[%clk 0:02:44]}  c5 {[%clk 0:02:31]} 16. h3 {[%clk 0:02:42]}  Qe8 {[%clk 0:02:27]} 17. Nh2 {[%clk 0:02:42]}  Qg6 {[%clk 0:02:19]} 18. Ng4 {[%clk 0:02:41]}  Nh5 {[%clk 0:02:14]} 19. g3 {[%clk 0:02:16]}  Nd8 {[%clk 0:02:05]} 20. Kg2 {[%clk 0:01:37]}  Nc6 {[%clk 0:01:42]} 21. Qe2 {[%clk 0:01:23]}  Rf7 {[%clk 0:01:38]} 22. Rf1 {[%clk 0:01:08]}  Raf8 {[%clk 0:01:37]} 23. Rg1 {[%clk 0:01:03]}  Kh8 {[%clk 0:01:00]} 24. Raf1 {[%clk 0:01:01]}  Nf4+ {[%clk 0:00:52]} 25. gxf4 {[%clk 0:00:59]}  exf4 {[%clk 0:00:53]} 26. Kh1 {[%clk 0:00:51]}  fxe3 {[%clk 0:00:47]} 27. fxe3 {[%clk 0:00:52]}  Qh5 {[%clk 0:00:45]} 28. Qg2 {[%clk 0:00:49]}  g6 {[%clk 0:00:28]} 29. Rxf7 {[%clk 0:00:48]}  Rxf7 {[%clk 0:00:28]} 30. Rf1 {[%clk 0:00:49]}  Nd8 {[%clk 0:00:25]} 31. Rxf7 {[%clk 0:00:44]}  Nxf7 {[%clk 0:00:26]} 32. Qf1 {[%clk 0:00:45]}  Kg7 {[%clk 0:00:26]} 33. e5 {[%clk 0:00:38]}  dxe5 {[%clk 0:00:22]} 34. e4 {[%clk 0:00:33]}  Bg5 {[%clk 0:00:20]} 35. Ncxe5 {[%clk 0:00:29]}  Nxe5 {[%clk 0:00:19]} 36. Nxe5 {[%clk 0:00:29]}  Bf6 {[%clk 0:00:19]} 37. Ng4 {[%clk 0:00:30]}  Bd4 {[%clk 0:00:19]} 38. Qf3 {[%clk 0:00:29]}  Qg5 {[%clk 0:00:19]} 39. e5 {[%clk 0:00:24]}  Qc1+ {[%clk 0:00:15]} 40. Kh2 {[%clk 0:00:18]}  Qd2+ {[%clk 0:00:15]} 41. Qg2 {[%clk 0:00:14]}  Qxg2+ {[%clk 0:00:13]} 42. Kxg2 {[%clk 0:00:15]}  h5 {[%clk 0:00:14]} 43. Nf6 {[%clk 0:00:14]}  Bxe5 {[%clk 0:00:13]} 44. Ne4 {[%clk 0:00:14]}  Bd4 {[%clk 0:00:13]} 45. Ng5 {[%clk 0:00:13]}  Kf6 {[%clk 0:00:12]} 46. Ne4+ {[%clk 0:00:14]}  Ke5 {[%clk 0:00:12]} 47. Kf3 {[%clk 0:00:14]}  Kf5 {[%clk 0:00:08]} 48. Ng3+ {[%clk 0:00:11]}  Kf6 {[%clk 0:00:08]} 49. Ne4+ {[%clk 0:00:11]}  Ke5 {[%clk 0:00:08]} 50. a5 {[%clk 0:00:11]}  Kd5 {[%clk 0:00:07]} 51. Ng5 {[%clk 0:00:10]}  Bf6 {[%clk 0:00:07]} 52. Ne4 {[%clk 0:00:09]}  Be7 {[%clk 0:00:07]} 53. Nd2 {[%clk 0:00:08]}  g5 {[%clk 0:00:08]} 54. Nc4 {[%clk 0:00:08]}  Kd4 {[%clk 0:00:08]} 55. Ke2 {[%clk 0:00:07]}  g4 {[%clk 0:00:08]} 56. hxg4 {[%clk 0:00:08]}  hxg4 {[%clk 0:00:08]} 57. Kf1 {[%clk 0:00:07]}  Kc3 {[%clk 0:00:08]} 58. Ne3 {[%clk 0:00:07]}  g3 {[%clk 0:00:09]} 59. Kg2 {[%clk 0:00:07]}  Bd6 {[%clk 0:00:08]} 60. Nc4 {[%clk 0:00:06]}  Bf4 {[%clk 0:00:08]} 61. Kf3 {[%clk 0:00:06]}  Bc7 {[%clk 0:00:08]} 62. Ne3 {[%clk 0:00:03]}  Kd2 {[%clk 0:00:07]} 0-1


[Site "https://www.chess.com"]

[Event "Titled Tuesday Blitz March 08 Early 2022"]
[White "Mkrtchyan, Mariam"]
[Black "Kadam, Om Manish"]
[WhiteFideId "13310828"]
[BlackFideId "45076294"]
[WhiteElo "1984"]
[BlackElo "1729"]
[Result "0-1"]
[Round "11"]
[TimeControl "180+1"]
[Date "2022.03.09"]
[WhiteClock "0:00:02"]
[BlackClock "0:00:19"]

1. Nf3 {[%clk 0:03:00]}  Nf6 {[%clk 0:02:59]} 2. g3 {[%clk 0:02:59]}  g6 {[%clk 0:02:59]} 3. Bg2 {[%clk 0:02:59]}  Bg7 {[%clk 0:02:59]} 4. O-O {[%clk 0:03:00]}  O-O {[%clk 0:02:59]} 5. c4 {[%clk 0:03:00]}  c6 {[%clk 0:02:59]} 6. d4 {[%clk 0:03:00]}  d5 {[%clk 0:03:00]} 7. cxd5 {[%clk 0:02:58]}  cxd5 {[%clk 0:03:01]} 8. Ne5 {[%clk 0:02:58]}  Nc6 {[%clk 0:03:01]} 9. Nc3 {[%clk 0:02:57]}  Ng4 {[%clk 0:03:02]} 10. Nxc6 {[%clk 0:02:54]}  bxc6 {[%clk 0:03:03]} 11. h3 {[%clk 0:02:47]}  Nf6 {[%clk 0:03:02]} 12. Na4 {[%clk 0:02:46]}  Nd7 {[%clk 0:03:02]} 13. Be3 {[%clk 0:02:43]}  Rb8 {[%clk 0:03:00]} 14. Rc1 {[%clk 0:02:42]}  Bb7 {[%clk 0:02:56]} 15. Qd2 {[%clk 0:02:42]}  Re8 {[%clk 0:02:55]} 16. b3 {[%clk 0:02:39]}  Rc8 {[%clk 0:02:53]} 17. Rc2 {[%clk 0:02:37]}  h5 {[%clk 0:02:27]} 18. Rfc1 {[%clk 0:02:30]}  e6 {[%clk 0:02:25]} 19. Bg5 {[%clk 0:02:16]}  Qc7 {[%clk 0:02:19]} 20. Bf4 {[%clk 0:02:13]}  Qd8 {[%clk 0:02:14]} 21. Bf1 {[%clk 0:01:55]}  Qf6 {[%clk 0:02:03]} 22. Be3 {[%clk 0:01:50]}  Ba8 {[%clk 0:01:59]} 23. Nc5 {[%clk 0:01:44]}  Nxc5 {[%clk 0:01:57]} 24. Rxc5 {[%clk 0:01:43]}  Bf8 {[%clk 0:01:57]} 25. R5c2 {[%clk 0:01:43]}  Qf5 {[%clk 0:01:53]} 26. Qa5 {[%clk 0:01:39]}  c5 {[%clk 0:01:48]} 27. dxc5 {[%clk 0:01:33]}  d4 {[%clk 0:01:47]} 28. Bd2 {[%clk 0:01:13]}  Qd5 {[%clk 0:01:41]} 29. f3 {[%clk 0:01:11]}  d3 {[%clk 0:01:42]} 30. Rc4 {[%clk 0:00:59]}  dxe2 {[%clk 0:01:41]} 31. Bxe2 {[%clk 0:00:58]}  Red8 {[%clk 0:01:40]} 32. Be3 {[%clk 0:00:56]}  Qf5 {[%clk 0:01:26]} 33. h4 {[%clk 0:00:28]}  Qh3 {[%clk 0:01:18]} 34. Bf2 {[%clk 0:00:18]}  Rd2 {[%clk 0:01:17]} 35. Qxd2 {[%clk 0:00:17]}  Bg7 {[%clk 0:01:13]} 36. c6 {[%clk 0:00:17]}  Be5 {[%clk 0:01:13]} 37. Rf4 {[%clk 0:00:13]}  Bxc6 {[%clk 0:01:10]} 38. Rf1 {[%clk 0:00:10]}  Bxf4 {[%clk 0:01:04]} 39. Qxf4 {[%clk 0:00:10]}  Bd5 {[%clk 0:01:03]} 40. Qe5 {[%clk 0:00:08]}  Rc2 {[%clk 0:00:46]} 41. Re1 {[%clk 0:00:09]}  Rxa2 {[%clk 0:00:36]} 42. Bf1 {[%clk 0:00:08]}  Qf5 {[%clk 0:00:34]} 43. Qxf5 {[%clk 0:00:08]}  gxf5 {[%clk 0:00:34]} 44. b4 {[%clk 0:00:08]}  Bxf3 {[%clk 0:00:32]} 45. Bg2 {[%clk 0:00:09]}  Bxg2 {[%clk 0:00:30]} 46. Kxg2 {[%clk 0:00:09]}  Rb2 {[%clk 0:00:26]} 47. Ra1 {[%clk 0:00:08]}  Rxb4 {[%clk 0:00:26]} 48. Rxa7 {[%clk 0:00:08]}  Kg7 {[%clk 0:00:27]} 49. Rd7 {[%clk 0:00:07]}  Kg6 {[%clk 0:00:27]} 50. Kf3 {[%clk 0:00:07]}  e5 {[%clk 0:00:26]} 51. Rd6+ {[%clk 0:00:02]}  f6 {[%clk 0:00:26]} 52. Rd8 {[%clk 0:00:02]}  Rb2 {[%clk 0:00:24]} 53. Kg2 {[%clk 0:00:02]}  Kf7 {[%clk 0:00:21]} 54. Rc8 {[%clk 0:00:03]}  e4 {[%clk 0:00:20]} 55. Rc7+ {[%clk 0:00:04]}  Ke6 {[%clk 0:00:20]} 56. Rc3 {[%clk 0:00:04]}  Kd5 {[%clk 0:00:20]} 57. Rc7 {[%clk 0:00:05]}  e3 {[%clk 0:00:20]} 58. Rd7+ {[%clk 0:00:04]}  Ke6 {[%clk 0:00:20]} 59. Kf3 {[%clk 0:00:04]}  Rxf2+ {[%clk 0:00:21]} 60. Kxe3 {[%clk 0:00:04]}  Ra2 {[%clk 0:00:19]} 61. Rh7 {[%clk 0:00:03]}  Ra3+ {[%clk 0:00:19]} 62. Kf2 {[%clk 0:00:04]}  Ke5 {[%clk 0:00:19]} 63. Rxh5 {[%clk 0:00:03]}  Ke4 {[%clk 0:00:20]} 64. Rh8 {[%clk 0:00:03]}  Ra2+ {[%clk 0:00:20]} 65. Kf1 {[%clk 0:00:04]}  Kf3 {[%clk 0:00:21]} 66. Ke1 {[%clk 0:00:03]}  Kxg3 {[%clk 0:00:21]} 67. h5 {[%clk 0:00:03]}  Rh2 {[%clk 0:00:21]} 68. h6 {[%clk 0:00:03]}  f4 {[%clk 0:00:22]} 69. h7 {[%clk 0:00:03]}  Kf3 {[%clk 0:00:22]} 70. Rf8 {[%clk 0:00:02]}  Rxh7 {[%clk 0:00:21]} 71. Rxf6 {[%clk 0:00:02]}  Rh1+ {[%clk 0:00:22]} 72. Kd2 {[%clk 0:00:03]}  Kg3 {[%clk 0:00:22]} 73. Rg6+ {[%clk 0:00:03]}  Kf2 {[%clk 0:00:22]} 74. Rf6 {[%clk 0:00:03]}  f3 {[%clk 0:00:22]} 75. Rf7 {[%clk 0:00:03]}  Rh5 {[%clk 0:00:21]} 76. Rf8 {[%clk 0:00:04]}  Rd5+ {[%clk 0:00:21]} 77. Kc2 {[%clk 0:00:04]}  Ke2 {[%clk 0:00:19]} 78. Re8+ {[%clk 0:00:02]}  Kf1 {[%clk 0:00:20]} 79. Rf8 {[%clk 0:00:02]}  f2 {[%clk 0:00:21]} 80. Kc3 {[%clk 0:00:02]}  Kg2 {[%clk 0:00:20]} 81. Kc4 {[%clk 0:00:03]}  Rg5 {[%clk 0:00:18]} 82. Rf7 {[%clk 0:00:02]}  f1=Q+ {[%clk 0:00:19]} 0-1


[Site "https://www.chess.com"]

[Event "Titled Tuesday Blitz March 08 Early 2022"]
[White "Mohammadian, Mohammad"]
[Black "Dejmek, Mark"]
[WhiteFideId "12566055"]
[BlackFideId "2017628"]
[WhiteElo "1544"]
[BlackElo "2223"]
[Result "0-1"]
[Round "11"]
[TimeControl "180+1"]
[Date "2022.03.09"]
[WhiteClock "0:00:04"]
[BlackClock "0:00:51"]

1. e4 {[%clk 0:03:00]}  e5 {[%clk 0:02:59]} 2. Nf3 {[%clk 0:03:00]}  Nc6 {[%clk 0:02:59]} 3. Bb5 {[%clk 0:02:59]}  a6 {[%clk 0:02:59]} 4. Ba4 {[%clk 0:02:58]}  Nf6 {[%clk 0:03:00]} 5. O-O {[%clk 0:02:58]}  Be7 {[%clk 0:02:58]} 6. Re1 {[%clk 0:02:57]}  b5 {[%clk 0:02:58]} 7. Bb3 {[%clk 0:02:57]}  d6 {[%clk 0:02:58]} 8. h3 {[%clk 0:02:55]}  Na5 {[%clk 0:02:52]} 9. Nc3 {[%clk 0:02:53]}  O-O {[%clk 0:02:45]} 10. d3 {[%clk 0:02:50]}  c5 {[%clk 0:02:42]} 11. a3 {[%clk 0:02:42]}  Nxb3 {[%clk 0:02:42]} 12. cxb3 {[%clk 0:02:41]}  h6 {[%clk 0:02:34]} 13. Be3 {[%clk 0:02:37]}  Ne8 {[%clk 0:02:22]} 14. Nd5 {[%clk 0:02:35]}  Bb7 {[%clk 0:02:19]} 15. Nxe7+ {[%clk 0:02:34]}  Qxe7 {[%clk 0:02:20]} 16. Rc1 {[%clk 0:02:30]}  Nc7 {[%clk 0:02:18]} 17. Nh2 {[%clk 0:02:28]}  Ne6 {[%clk 0:02:17]} 18. Ng4 {[%clk 0:02:25]}  Rac8 {[%clk 0:02:10]} 19. Qf3 {[%clk 0:02:22]}  f5 {[%clk 0:02:06]} 20. Qe2 {[%clk 0:01:31]}  fxg4 {[%clk 0:02:01]} 21. Qxg4 {[%clk 0:01:28]}  Nf4 {[%clk 0:01:53]} 22. Rcd1 {[%clk 0:01:13]}  Rce8 {[%clk 0:01:33]} 23. g3 {[%clk 0:01:07]}  Bc8 {[%clk 0:01:33]} 24. Qh4 {[%clk 0:00:48]}  Qxh4 {[%clk 0:01:29]} 25. gxh4 {[%clk 0:00:48]}  Bxh3 {[%clk 0:01:25]} 26. Kh2 {[%clk 0:00:41]}  Bg4 {[%clk 0:01:25]} 27. Rd2 {[%clk 0:00:40]}  Rf6 {[%clk 0:01:13]} 28. Rg1 {[%clk 0:00:39]}  h5 {[%clk 0:01:09]} 29. Bxf4 {[%clk 0:00:35]}  Rxf4 {[%clk 0:01:08]} 30. Rc2 {[%clk 0:00:30]}  Ref8 {[%clk 0:01:07]} 31. Rf1 {[%clk 0:00:27]}  Rf3 {[%clk 0:01:04]} 32. b4 {[%clk 0:00:23]}  cxb4 {[%clk 0:01:01]} 33. axb4 {[%clk 0:00:22]}  Rh3+ {[%clk 0:01:00]} 34. Kg2 {[%clk 0:00:17]}  Rxd3 {[%clk 0:01:01]} 35. Rc7 {[%clk 0:00:16]}  Bh3+ {[%clk 0:01:00]} 36. Kh2 {[%clk 0:00:15]}  Bxf1 {[%clk 0:01:00]} 37. Kg1 {[%clk 0:00:12]}  Bh3 {[%clk 0:00:59]} 38. Rd7 {[%clk 0:00:10]}  Rd2 {[%clk 0:00:54]} 39. f3 {[%clk 0:00:04]}  Rxf3 {[%clk 0:00:51]} 0-1


[Site "https://www.chess.com"]

[Event "Titled Tuesday Blitz March 08 Early 2022"]
[White "Molina, Roberto Junio Brito"]
[Black "Odegov, Artem"]
[WhiteFideId "2109450"]
[BlackFideId "34183644"]
[WhiteElo "2432"]
[BlackElo "2286"]
[Result "1-0"]
[Round "11"]
[TimeControl "180+1"]
[Date "2022.03.08"]
[WhiteClock "0:00:56"]
[BlackClock "0:00:03"]

1. d4 {[%clk 0:03:00]}  Nf6 {[%clk 0:02:59]} 2. c4 {[%clk 0:03:00]}  c5 {[%clk 0:03:00]} 3. d5 {[%clk 0:03:00]}  e6 {[%clk 0:03:00]} 4. Nc3 {[%clk 0:03:00]}  exd5 {[%clk 0:03:00]} 5. cxd5 {[%clk 0:03:01]}  d6 {[%clk 0:03:01]} 6. e4 {[%clk 0:03:01]}  g6 {[%clk 0:03:01]} 7. Nf3 {[%clk 0:03:00]}  Bg7 {[%clk 0:03:02]} 8. Be2 {[%clk 0:03:00]}  O-O {[%clk 0:03:02]} 9. O-O {[%clk 0:03:00]}  Re8 {[%clk 0:02:59]} 10. Nd2 {[%clk 0:03:00]}  Nbd7 {[%clk 0:02:59]} 11. Re1 {[%clk 0:02:59]}  Ne5 {[%clk 0:02:52]} 12. h3 {[%clk 0:02:58]}  g5 {[%clk 0:02:47]} 13. Nf1 {[%clk 0:02:57]}  h6 {[%clk 0:02:45]} 14. Ng3 {[%clk 0:02:52]}  Ng6 {[%clk 0:02:44]} 15. Be3 {[%clk 0:02:42]}  a6 {[%clk 0:02:39]} 16. a4 {[%clk 0:02:41]}  Bd7 {[%clk 0:02:29]} 17. Qd2 {[%clk 0:02:40]}  Qc8 {[%clk 0:02:25]} 18. Bf1 {[%clk 0:02:40]}  Nh4 {[%clk 0:02:23]} 19. Kh1 {[%clk 0:02:31]}  Nh7 {[%clk 0:01:26]} 20. f3 {[%clk 0:02:27]}  Be5 {[%clk 0:01:21]} 21. Qf2 {[%clk 0:02:27]}  Nf6 {[%clk 0:01:09]} 22. f4 {[%clk 0:02:20]}  Bxc3 {[%clk 0:01:07]} 23. bxc3 {[%clk 0:02:19]}  g4 {[%clk 0:00:53]} 24. e5 {[%clk 0:02:17]}  Nxd5 {[%clk 0:00:45]} 25. Ne4 {[%clk 0:02:17]}  Nf5 {[%clk 0:00:42]} 26. Bd2 {[%clk 0:02:09]}  h5 {[%clk 0:00:37]} 27. c4 {[%clk 0:02:06]}  Nb4 {[%clk 0:00:21]} 28. Nf6+ {[%clk 0:01:47]}  Kg7 {[%clk 0:00:21]} 29. Nxe8+ {[%clk 0:01:40]}  Bxe8 {[%clk 0:00:22]} 30. Bc3 {[%clk 0:01:39]}  Bc6 {[%clk 0:00:09]} 31. exd6+ {[%clk 0:01:27]}  Kg6 {[%clk 0:00:10]} 32. Re5 {[%clk 0:01:25]}  gxh3 {[%clk 0:00:08]} 33. Kh2 {[%clk 0:01:22]}  Qd8 {[%clk 0:00:04]} 34. Bxb4 {[%clk 0:01:12]}  cxb4 {[%clk 0:00:03]} 35. Bd3 {[%clk 0:01:10]}  Qd7 {[%clk 0:00:01]} 36. Bxf5+ {[%clk 0:01:02]}  Qxf5 {[%clk 0:00:02]} 37. Rxf5 {[%clk 0:01:01]}  Kxf5 {[%clk 0:00:03]} 38. Qc5+ {[%clk 0:00:56]} 1-0


[Site "https://www.chess.com"]

[Event "Titled Tuesday Blitz March 08 Early 2022"]
[White "Morefield, Jason"]
[Black "Shuvalov, Evgenij"]
[WhiteFideId "30920825"]
[BlackFideId "4187237"]
[WhiteElo "2171"]
[BlackElo "2151"]
[Result "1-0"]
[Round "11"]
[TimeControl "180+1"]
[Date "2022.03.09"]
[WhiteClock "0:02:50"]
[BlackClock "0:01:37"]

1. d4 {[%clk 0:03:00]}  Nf6 {[%clk 0:02:58]} 2. c4 {[%clk 0:03:01]}  g6 {[%clk 0:02:57]} 3. Nc3 {[%clk 0:03:00]}  d5 {[%clk 0:02:57]} 4. Nf3 {[%clk 0:03:01]}  Bg7 {[%clk 0:02:57]} 5. Qb3 {[%clk 0:03:01]}  dxc4 {[%clk 0:02:57]} 6. Qxc4 {[%clk 0:03:01]}  O-O {[%clk 0:02:57]} 7. e4 {[%clk 0:03:02]}  a6 {[%clk 0:02:56]} 8. Be2 {[%clk 0:03:03]}  b5 {[%clk 0:02:56]} 9. Qb3 {[%clk 0:03:03]}  c5 {[%clk 0:02:56]} 10. dxc5 {[%clk 0:03:02]}  Bb7 {[%clk 0:02:56]} 11. e5 {[%clk 0:03:02]}  Nfd7 {[%clk 0:02:55]} 12. Be3 {[%clk 0:03:03]}  Nc6 {[%clk 0:02:52]} 13. e6 {[%clk 0:03:02]}  Nde5 {[%clk 0:02:39]} 14. Nxe5 {[%clk 0:02:59]}  Nxe5 {[%clk 0:02:38]} 15. exf7+ {[%clk 0:03:00]}  Rxf7 {[%clk 0:02:32]} 16. O-O {[%clk 0:03:01]}  Qf8 {[%clk 0:01:57]} 17. a4 {[%clk 0:02:53]}  Nc4 {[%clk 0:01:41]} 18. Bxc4 {[%clk 0:02:52]}  bxc4 {[%clk 0:01:41]} 19. Qxb7 {[%clk 0:02:53]}  Rb8 {[%clk 0:01:37]} 20. Qe4 {[%clk 0:02:51]}  Rxb2 {[%clk 0:01:37]} 21. Rac1 {[%clk 0:02:50]} 1-0


[Site "https://www.chess.com"]

[Event "Titled Tuesday Blitz March 08 Early 2022"]
[White "Omariev, Maksim"]
[Black "Voit, Daria"]
[WhiteFideId "4193423"]
[BlackFideId "4182146"]
[WhiteElo "2436"]
[BlackElo "2323"]
[Result "0-1"]
[Round "11"]
[TimeControl "180+1"]
[Date "2022.03.09"]
[WhiteClock "0:00:07"]
[BlackClock "0:00:12"]

1. g4 {[%clk 0:02:46]}  d5 {[%clk 0:02:54]} 2. Bg2 {[%clk 0:02:46]}  c6 {[%clk 0:02:54]} 3. h3 {[%clk 0:02:43]}  h5 {[%clk 0:02:53]} 4. g5 {[%clk 0:02:43]}  e5 {[%clk 0:02:50]} 5. d4 {[%clk 0:02:42]}  e4 {[%clk 0:02:47]} 6. c4 {[%clk 0:02:42]}  h4 {[%clk 0:02:45]} 7. Nc3 {[%clk 0:02:41]}  Be7 {[%clk 0:02:42]} 8. f4 {[%clk 0:02:36]}  f6 {[%clk 0:02:33]} 9. gxf6 {[%clk 0:02:26]}  Nxf6 {[%clk 0:02:27]} 10. e3 {[%clk 0:02:18]}  Rh6 {[%clk 0:02:23]} 11. Nge2 {[%clk 0:02:17]}  Rg6 {[%clk 0:02:22]} 12. Rg1 {[%clk 0:02:11]}  Bf5 {[%clk 0:02:17]} 13. Qb3 {[%clk 0:02:08]}  Qd7 {[%clk 0:02:17]} 14. Bd2 {[%clk 0:01:58]}  Na6 {[%clk 0:01:35]} 15. O-O-O {[%clk 0:01:39]}  Nb4 {[%clk 0:01:32]} 16. cxd5 {[%clk 0:01:25]}  Nd3+ {[%clk 0:01:30]} 17. Kb1 {[%clk 0:01:25]}  cxd5 {[%clk 0:01:30]} 18. Na4 {[%clk 0:01:11]}  b6 {[%clk 0:01:15]} 19. Nc1 {[%clk 0:01:00]}  Nxc1 {[%clk 0:00:39]} 20. Rxc1 {[%clk 0:01:00]}  Rc8 {[%clk 0:00:32]} 21. Nc3 {[%clk 0:00:48]}  Kf8 {[%clk 0:00:28]} 22. Ne2 {[%clk 0:00:04]}  Rxc1+ {[%clk 0:00:26]} 23. Bxc1 {[%clk 0:00:05]}  Kf7 {[%clk 0:00:20]} 24. Bd2 {[%clk 0:00:05]}  Bxh3 {[%clk 0:00:20]} 25. Bxh3 {[%clk 0:00:04]}  Qxh3 {[%clk 0:00:21]} 26. Rxg6 {[%clk 0:00:03]}  Kxg6 {[%clk 0:00:22]} 27. Nc3 {[%clk 0:00:04]}  Qf1+ {[%clk 0:00:22]} 28. Bc1 {[%clk 0:00:04]}  Qc4 {[%clk 0:00:18]} 29. Qxc4 {[%clk 0:00:03]}  dxc4 {[%clk 0:00:18]} 30. Ne2 {[%clk 0:00:03]}  h3 {[%clk 0:00:17]} 31. Bd2 {[%clk 0:00:02]}  h2 {[%clk 0:00:17]} 32. Ng3 {[%clk 0:00:03]}  Nh5 {[%clk 0:00:17]} 33. Nh1 {[%clk 0:00:03]}  Bh4 {[%clk 0:00:18]} 34. Kc2 {[%clk 0:00:03]}  Ng3 {[%clk 0:00:13]} 35. Nf2 {[%clk 0:00:03]}  Nf1 {[%clk 0:00:12]} 36. Nh1 {[%clk 0:00:03]}  Kf5 {[%clk 0:00:11]} 37. Kd1 {[%clk 0:00:03]}  b5 {[%clk 0:00:11]} 38. Ke2 {[%clk 0:00:04]}  Ng3+ {[%clk 0:00:11]} 39. Kf2 {[%clk 0:00:01]}  Nxh1+ {[%clk 0:00:11]} 40. Kg2 {[%clk 0:00:02]}  Nf2 {[%clk 0:00:09]} 41. Kxh2 {[%clk 0:00:02]}  Nd3 {[%clk 0:00:10]} 42. b3 {[%clk 0:00:02]}  cxb3 {[%clk 0:00:10]} 43. axb3 {[%clk 0:00:03]}  Be1 {[%clk 0:00:10]} 44. Bxe1 {[%clk 0:00:03]}  Nxe1 {[%clk 0:00:11]} 45. Kg1 {[%clk 0:00:03]}  a5 {[%clk 0:00:10]} 46. Kf2 {[%clk 0:00:04]}  Nd3+ {[%clk 0:00:11]} 47. Ke2 {[%clk 0:00:05]}  a4 {[%clk 0:00:11]} 48. bxa4 {[%clk 0:00:05]}  bxa4 {[%clk 0:00:12]} 49. Kd2 {[%clk 0:00:06]}  g5 {[%clk 0:00:12]} 50. Kc2 {[%clk 0:00:07]}  g4 {[%clk 0:00:12]} 0-1


[Site "https://www.chess.com"]

[Event "Titled Tuesday Blitz March 08 Early 2022"]
[White "Petrovic, Aleksa"]
[Black "Jaferian, Koosha"]
[WhiteFideId "967629"]
[BlackFideId "12507440"]
[WhiteElo "2245"]
[BlackElo "2030"]
[Result "0-1"]
[Round "11"]
[TimeControl "180+1"]
[Date "2022.03.09"]
[WhiteClock "0:00:13"]
[BlackClock "0:00:42"]

1. e4 {[%clk 0:03:00]}  c6 {[%clk 0:03:00]} 2. d4 {[%clk 0:03:00]}  d5 {[%clk 0:03:01]} 3. e5 {[%clk 0:02:59]}  Bf5 {[%clk 0:03:01]} 4. Nf3 {[%clk 0:02:58]}  e6 {[%clk 0:03:01]} 5. Be2 {[%clk 0:02:59]}  c5 {[%clk 0:03:01]} 6. Be3 {[%clk 0:02:55]}  cxd4 {[%clk 0:03:01]} 7. Nxd4 {[%clk 0:02:55]}  Ne7 {[%clk 0:03:02]} 8. c4 {[%clk 0:02:48]}  Nbc6 {[%clk 0:03:02]} 9. cxd5 {[%clk 0:02:34]}  Qxd5 {[%clk 0:02:57]} 10. Nc3 {[%clk 0:02:08]}  Qxe5 {[%clk 0:02:51]} 11. O-O {[%clk 0:01:32]}  Rd8 {[%clk 0:02:31]} 12. Qa4 {[%clk 0:01:21]}  a6 {[%clk 0:02:13]} 13. Nxc6 {[%clk 0:01:18]}  Nxc6 {[%clk 0:02:12]} 14. Bxa6 {[%clk 0:01:09]}  Qc7 {[%clk 0:01:59]} 15. Nb5 {[%clk 0:01:00]}  Qb8 {[%clk 0:01:50]} 16. Na7 {[%clk 0:00:46]}  Bd6 {[%clk 0:01:18]} 17. Nxc6 {[%clk 0:00:45]}  bxc6 {[%clk 0:01:19]} 18. Qxc6+ {[%clk 0:00:44]}  Ke7 {[%clk 0:01:19]} 19. Bc5 {[%clk 0:00:39]}  Bxc5 {[%clk 0:01:16]} 20. Qxc5+ {[%clk 0:00:39]}  Rd6 {[%clk 0:01:16]} 21. Rfd1 {[%clk 0:00:36]}  Rd8 {[%clk 0:01:16]} 22. h3 {[%clk 0:00:32]}  Kf6 {[%clk 0:01:03]} 23. Be2 {[%clk 0:00:32]}  Rxd1+ {[%clk 0:01:00]} 24. Rxd1 {[%clk 0:00:33]}  Rxd1+ {[%clk 0:00:59]} 25. Bxd1 {[%clk 0:00:34]}  Qxb2 {[%clk 0:01:00]} 26. Bb3 {[%clk 0:00:21]}  h6 {[%clk 0:00:51]} 27. Qc7 {[%clk 0:00:16]}  Kg6 {[%clk 0:00:48]} 28. Qg3+ {[%clk 0:00:13]}  Kh7 {[%clk 0:00:48]} 29. Qf3 {[%clk 0:00:13]}  Bg6 {[%clk 0:00:44]} 30. g3 {[%clk 0:00:13]}  Qb1+ {[%clk 0:00:42]} 31. Kh2 {[%clk 0:00:13]}  Be4 {[%clk 0:00:42]} 0-1


[Site "https://www.chess.com"]